Cogmind - Beta 13 @@@ ROGUE MODE // 2024.06.02 @ 16:36:31 Player: wojo Result: Destroyed by 8R-AWN with 8R-AWN's Boregun Performance ------------- Evolutions (1) 500 Regions Visited (4) 800 Robots Destroyed (7) 35 Value Destroyed (143) 143 Prototype IDs (1) 20 Alien Tech Used (0) 0 Bonus (0) 0 TOTAL SCORE: 1498 Bonus ------- None Cogmind --------- Core Integrity 0/400 Matter 247/300 Energy 100/100 System Corruption 4% Temperature Cool (39) Movement Core (50) Location -9/Exiles Parts ------- > --- POWER (2) -------- (None) > --- PROPULSION (2) --- (None) > --- UTILITY (3) ------ (None) > --- WEAPON (2) ------- (None) > --- INVENTORY (5) ---- Ion Engine Light Ion Engine Heat Sink Weight Redist. System Peak State ------------ > --- POWER ------------ Ion Engine Heavy Ion Engine > --- PROPULSION ------- Aluminum Leg Aluminum Leg > --- UTILITY ---------- Weight Redist. System Visual Processing Unit Signal Interpreter > --- WEAPON ----------- Beam Cannon Particle Cannon > --- INVENTORY -------- Ion Engine Light Ion Engine Heat Sink Light Assault Rifle [Rating: 14] Favorites ----------- Power Ion Engine Engine Ion Engine Propulsion Aluminum Leg Leg Aluminum Leg Hover Unit Hover Unit Utility Small Storage Unit Device Heat Sink Storage Small Storage Unit Processor Signal Interpreter Weapon EM Pulse Gun Energy Gun EM Pulse Gun Energy Cannon Particle Cannon Ballistic Gun Light Assault Rifle Ballistic Cannon Light Cannon Build | -11 -10 -9 -9 -9 ------- Run | Yrd Mat Mat Min Exi Slots Evolved 2 | . . 2 . . Power 1 | . . 1 . . Propulsion . | . . . . . Utility 1 | . . 1 . . Weapon . | . . . . . Parts Attached 27 | 6 12 4 4 1 Power 5 | 1 3 1 . . Engine 5 | 1 3 1 . . Core . | . . . . . Reactor . | . . . . . Propulsion 7 | 2 5 . . . Treads . | . . . . . Leg 6 | 2 4 . . . Wheel . | . . . . . Hover 1 | . 1 . . . Flight . | . . . . . Utility 6 | 1 2 1 2 . Device 2 | . 1 . 1 . Storage 1 | 1 . . . . Processor 3 | . 1 1 1 . Hackware . | . . . . . Protection . | . . . . . Artifact . | . . . . . Weapon 9 | 2 2 2 2 1 Energy Gun 3 | 1 1 1 . . Energy Cannon 2 | . . . 2 . Ballistic Gun 3 | 1 1 . . 1 Ballistic Cannon 1 | . . 1 . . Launcher . | . . . . . Special Weapon . | . . . . . Impact Weapon . | . . . . . Slashing Weapon . | . . . . . Piercing Weapon . | . . . . . Special Melee Weapon . | . . . . . Unidentified Prototypes 1 | . . 1 . . Corrupted Parts 1 | . . 1 . . System Corruption 2 | . . 2 . . Parts Lost 10 | . . . . 10 Power 2 | . . . . 2 Propulsion 2 | . . . . 2 Utility 3 | . . . . 3 Weapon 3 | . . . . 3 Highest Loss Streak 10 | . . . . 10 To Critical Strikes 4 | . . . . 4 Average Slot Usage (%) 91 | . 88 86 100 90 Engine 16 | . 12 14 22 19 Leg 22 | . 25 22 22 18 Device 5 | . 9 . 4 . Storage 9 | . 14 11 4 . Processor 14 | . 1 22 24 33 Energy Gun 9 | . 12 14 3 . Energy Cannon 6 | . . . 14 19 Ballistic Gun 5 | . 11 . . 1 Ballistic Cannon 1 | . . 2 3 . Naked Turns 3 | . . . . 3 Heaviest Build 25 | 13 14 23 25 20 Greatest Support 26 | 20 20 20 26 20 Greatest Overweight (x) 5 | 3 3 1 1 5 Average Overweight (x) . | . . . . . Largest Inventory Capacity 8 | 8 8 8 8 5 Average Capacity 7 | 7 8 8 6 5 Most Carried 8 | 2 8 5 5 5 Average Carried 4 | . 5 4 4 4 Final Capacity 8 | 8 8 8 5 5 Final Carried 6 | 2 6 4 5 4 Class Distribution -------------------- 100% | Mutant Dominant Class ---------------- Mutant | -10/Materials Mutant | -9/Materials Mutant | -9/Mines Mutant | -9/Exiles Resources | -11 -10 -9 -9 -9 ----------- Run | Yrd Mat Mat Min Exi Matter Collected 409 | 164 136 74 35 . Remotely . | . . . . . Salvage Created 225 | . 195 . . 30 Parts 14 | . 14 . . . Haulers Intercepted . | . . . . . Recyclers Shooed . | . . . . . Parts Field Recycled . | . . . . . Retrieved Matter . | . . . . . Parts Self-Destructed . | . . . . . Prevented . | . . . . . Kills | -11 -10 -9 -9 -9 ------- Run | Yrd Mat Mat Min Exi Combat Hostiles Destroyed 7 | . 5 . . 2 Guns 6 | . 5 . . 1 Cannons 1 | . . . . 1 Classes Destroyed 4 | . 3 . . 1 Watcher 2 | . 2 . . . Swarmer 3 | . 3 . . . Grunt 2 | . 2 . . . Assembled 2 | . . . . 2 Best Kill Streak 5 | . 5 . . 2 Combat Bots Only 3 | . 3 . . 2 Max Kills in Single Turn 1 | . 1 . . 1 Gunslinging . | . . . . . Exploded . | . . . . . Melee . | . . . . . Uniques/NPCs Destroyed . | . . . . . Combat | -11 -10 -9 -9 -9 -------- Run | Yrd Mat Mat Min Exi Hostile Shots Fired 105 | . 25 16 . 64 Missed 26 | . 8 6 . 12 Damage Taken 1088 | . 199 76 . 813 Core 464 | . 58 10 . 396 Absorbed by Shields . | . . . . . Core Remaining (%) 88 | 100 76 . . . Volleys Fired 23 | . 16 1 . 6 Largest 2 | . 2 1 . 2 Hottest 88 | . 60 50 . 88 Shots Fired 43 | . 31 2 . 10 Gun 38 | . 31 2 . 5 Cannon 5 | . . . . 5 Launcher . | . . . . . Special . | . . . . . Kinetic 20 | . 15 . . 5 Thermal 8 | . 1 2 . 5 Explosive . | . . . . . Electromagnetic 15 | . 15 . . . Robot Hit Streak 4 | . 4 1 . 4 Robot Miss Streak 4 | . 4 2 . 1 Penetration Max . | . . . . . Secondary Targets . | . . . . . Shots Hit Robots 21 | . 13 1 . 7 Core Hits 15 | . 10 . . 5 Critical Kills . | . . . . . Critical Parts Destroyed . | . . . . . Critical Strikes . | . . . . . Melee Attacks . | . . . . . Impact . | . . . . . Slashing . | . . . . . Piercing . | . . . . . Sneak Attacks . | . . . . . Combat Hostiles . | . . . . . Follow-up Attacks . | . . . . . Damage Inflicted 400 | . 299 12 . 89 Guns 216 | . 159 12 . 45 Cannons 44 | . . . . 44 Explosions 126 | . 126 . . . Melee . | . . . . . Ramming 14 | . 14 . . . Kinetic 92 | . 47 . . 45 Thermal 182 | . 126 12 . 44 Explosive . | . . . . . Electromagnetic 112 | . 112 . . . Impact . | . . . . . Slashing . | . . . . . Piercing . | . . . . . Highest Corruption 4 | . 2 2 2 4 Average Corruption 2 | . 2 2 2 2 Corruption Purged . | . . . . . Corruption Blocked . | . . . . . Effects 9 | . 4 2 1 2 Message Errors 2 | . 1 . 1 . Matter Fused 3 | . 2 1 . . Energy Discharges 2 | . 1 . . 1 Misfires 2 | . . 1 . 1 Overload Shots . | . . . . . Overflow Damage . | . . . . . Projectiles . | . . . . . Explosions . | . . . . . Melee . | . . . . . Knockbacks . | . . . . . Impact . | . . . . . Kinetic . | . . . . . Secondary . | . . . . . Self-Inflicted Damage 39 | . 39 . . . Shots 1 | . 1 . . . Rammed . | . . . . . Targets Rammed 2 | . 2 . . . Kicked 2 | . 2 . . . Crushed . | . . . . . Highest Temperature 163 | . 18 18 . 163 Average Temperature 56 | . 10 7 . 80 Received Heat Transfer 245 | . 45 . . 200 Siege Activations . | . . . . . Robots Corrupted . | . . . . . Combat Hostiles . | . . . . . Parts Fried 1 | . 1 . . . Impact Corruptions . | . . . . . Robots Melted . | . . . . . Combat Hostiles . | . . . . . Parts Melted 1 | . 1 . . . Heat Transferred 270 | . 150 37 . 83 Parts Sabotaged . | . . . . . Parts Stolen . | . . . . . Parts Stripped . | . . . . . Power Chain Reactions 2 | . 2 . . . Alert | -11 -10 -9 -9 -9 ------- Run | Yrd Mat Mat Min Exi Peak Influence 151 | . 151 78 30 . Initial 63 | . . 63 30 . Average 53 | . 69 72 30 . Maximum Alert Level . | . . . . . Low Security (%) 100 | 100 100 100 100 . Level 1 . | . . . . . Level 2 . | . . . . . Level 3 . | . . . . . Level 4 . | . . . . . Level 5 . | . . . . . High Security . | . . . . . Max Security . | . . . . . Squads Dispatched 3 | . 2 1 . . Investigation 1 | . 1 . . . Extermination . | . . . . . Reinforcement 2 | . 1 1 . . Assault . | . . . . . Garrison . | . . . . . Intercept . | . . . . . Searches Triggered . | . . . . . Construction Impeded . | . . . . . Haulers Reinforced . | . . . . . Active Scanning Responses . | . . . . . Cargo Convoy Interrupts . | . . . . . Stealth | -11 -10 -9 -9 -9 --------- Run | Yrd Mat Mat Min Exi Distress Signals . | . . . . . Communications Jammed . | . . . . . Distress Signals . | . . . . . Times Spotted 25 | . 9 8 . 8 Peak Tracking Total 9 | . 3 5 . 9 Tactical Retreats . | . . . . . Traps | -11 -10 -9 -9 -9 ------- Run | Yrd Mat Mat Min Exi Traps Triggered 7 | . 7 . . . Indirectly . | . . . . . Trap Hack Attempts . | . . . . . Triggered . | . . . . . Disarmed . | . . . . . Reprogrammed . | . . . . . Reused . | . . . . . Traps Extracted . | . . . . . Installed . | . . . . . Triggered . | . . . . . Machines | -11 -10 -9 -9 -9 ---------- Run | Yrd Mat Mat Min Exi Machines Disabled . | . . . . . Max in Single Turn . | . . . . . Machines Repaired . | . . . . . Machines Dismantled . | . . . . . Machines Sabotaged . | . . . . . Overloaded Fab Kills . | . . . . . Hacking | -11 -10 -9 -9 -9 --------- Run | Yrd Mat Mat Min Exi Machines Accessed 3 | . 3 . . . Terminals 1 | . 1 . . . Fabricators . | . . . . . Repair Stations . | . . . . . Recycling Units 2 | . 2 . . . Scanalyzers . | . . . . . Garrison Access . | . . . . . Total Hacks 9 | . 9 . . . Successful 5 | . 5 . . . Failed 4 | . 4 . . . Catastrophic 1 | . 1 . . . Database Lockouts . | . . . . . Manual . | . . . . . Terminals 4 | . 4 . . . Fabricators . | . . . . . Repair Stations . | . . . . . Recycling Units 5 | . 5 . . . Scanalyzers . | . . . . . Garrison Access . | . . . . . Terminal Hacks 2 | . 2 . . . Locate Traps 1 | . 1 . . . Registered Components 1 | . 1 . . . Fabricator Hacks . | . . . . . Repair Station Hacks . | . . . . . Recycling Unit Hacks 3 | . 3 . . . Retrieve Matter 1 | . 1 . . . Retrieve Components 2 | . 2 . . . Scanalyzer . | . . . . . Garrison Access Hacks . | . . . . . Unauthorized Hacks . | . . . . . Terminals . | . . . . . Fabricators . | . . . . . Repair Stations . | . . . . . Recycling Units . | . . . . . Scanalyzers . | . . . . . Garrison Access . | . . . . . Data Cores Recovered . | . . . . . Used . | . . . . . Hacking Detections 3 | . 3 . . . Full Trace Events 1 | . 1 . . . Feedback Events . | . . . . . Feedback Blocked . | . . . . . Robot Schematics Acquired . | . . . . . Robots Built . | . . . . . Authchips . | . . . . . Time . | . . . . . Total Robot Build Rating . | . . . . . Part Schematics Acquired . | . . . . . Parts Built . | . . . . . Authchips . | . . . . . Time . | . . . . . Total Part Build Rating . | . . . . . Parts Repaired . | . . . . . Time . | . . . . . Parts Recycled . | . . . . . Recycled Matter . | . . . . . Retrieved Matter . | . . . . . Retrieved Components 1 | . 1 . . . Parts Scanalyzed . | . . . . . Part Schematics Acquired . | . . . . . Parts Damaged . | . . . . . Bothacking | -11 -10 -9 -9 -9 ------------ Run | Yrd Mat Mat Min Exi Used RIF Installer . | . . . . . Robots Hacked . | . . . . . Non-combat . | . . . . . Combat . | . . . . . Robot Hacks Applied . | . . . . . Relay Couplers Released . | . . . . . Fabnet Peak Effective % . | . . . . . Robots Rewired . | . . . . . Allies Hacked . | . . . . . Hacks Repelled . | . . . . . Allies | -11 -10 -9 -9 -9 -------- Run | Yrd Mat Mat Min Exi Total Allies . | . . . . . Largest Group . | . . . . . Highest-Rated Group . | . . . . . Highest-Rated Ally . | . . . . . Total Orders . | . . . . . Ally Attacks . | . . . . . Total Damage . | . . . . . Kills . | . . . . . Allies Corrupted . | . . . . . Allies Melted . | . . . . . Intel | -11 -10 -9 -9 -9 ------- Run | Yrd Mat Mat Min Exi Robot Analysis Total . | . . . . . Derelict Logs Recovered . | . . . . . Drone Launches . | . . . . . Drone Recoveries . | . . . . . Exploration | -11 -10 -9 -9 -9 ------------- Run | Yrd Mat Mat Min Exi Turns Passed 896 | 69 376 143 198 110 Spaces Moved 602 | 46 249 96 138 73 Core 22 | 10 11 . . 1 Treads . | . . . . . Legs 578 | 36 236 96 138 72 Wheels . | . . . . . Hover 2 | . 2 . . . Flight . | . . . . . Fastest Speed 50 | 50 100 120 120 120 Average Speed 128 | 128 121 137 138 124 Slowest Speed 300 | 200 200 190 190 300 Overloaded Moves . | . . . . . Propulsion Burnouts . | . . . . . Robots Hopped . | . . . . . Cave-ins Triggered . | . . . . . Exploration Rate (%) 22 | 4 39 13 43 13 Regions Visited 4 Branch Regions 2 Pre-discovered Areas . | . . . . . Known Exits Taken 3 | . 1 1 1 . Unknown Exits Taken 1 | 1 . . . . Scrap Searched 2 | . . . 2 . Spaces Dug . | . . . . . Terrain Destroyed 4 | . 4 . . . Melee . | . . . . . Projectile . | . . . . . AOE 4 | . 4 . . . Terrain Rammed . | . . . . . Walls Destroyed . | . . . . . Machines Disabled . | . . . . . Actions | -11 -10 -9 -9 -9 --------- Run | Yrd Mat Mat Min Exi Total 680 | 53 292 106 145 84 Wait 9 | . . 5 . 4 Move 598 | 45 248 95 137 73 Hop . | . . . . . Pick Up 13 | 2 11 . . . Fast Attach 19 | 6 7 2 4 . Attach 8 | . 5 2 . 1 Detach 1 | . . . 1 . Swap . | . . . . . Drop 7 | . 3 1 3 . Fire 23 | . 16 1 . 6 Melee . | . . . . . Ram . | . . . . . Kick 2 | . 2 . . . Crush . | . . . . . Escape Stasis . | . . . . . Rewire . | . . . . . Trap . | . . . . . Miscellaneous . | . . . . . Route ------- -11/Scrapyard -10/Materials -9/Materials -9/Mines -9/Exiles (discovered 1 exit: *Min) History --------- Turn | Location | Event 28 | -11/Scrapyard | Discovered new exit (range 15) 70 | -11/Scrapyard | Entered Materials 306 | -10/Materials | Build established: Mutant 374 | -10/Materials | Discovered new exit (range 16) 445 | -10/Materials | Identified exit to Materials 446 | -10/Materials | Entered another Materials area 446 | -9/Materials | Evolved 2 slots: Power x1, Utility x1 561 | -9/Materials | Discovered new exit (range 16) 587 | -9/Materials | Identified exit to Mines 589 | -9/Materials | Entered Mines 780 | -9/Mines | Deemed a non-threat by the Exiles lab entrance 780 | -9/Mines | Discovered new exit (range 5) 785 | -9/Mines | Identified exit to Exiles 787 | -9/Mines | Entered Exiles 811 | -9/Exiles | Discovered new exit (range 15) 829 | -9/Exiles | Identified exit to Mines 856 | -9/Exiles | Met 8R-AWN 866 | -9/Exiles | Attacked by the Exiles 889 | -9/Exiles | Core integrity fell below 50% 895 | -9/Exiles | Core integrity fell below 20% 897 | -9/Exiles | Destroyed by 8R-AWN with 8R-AWN's Boregun Last Messages --------------- Particle Cannon destroyed. HV Slug penetrates Earth. Penetrated by HV Slug. HV Slug penetrates Earth. Targeting Computer destroyed. Penetrated by HV Slug. Visual Processing Unit destroyed. HV Slug penetrates Earth. Penetrated by HV Slug. HV Slug penetrates Earth. Lgt. Assault Rifle destroyed. Penetrated by HV Slug. HV Slug penetrates Earth. Penetrated by HV Slug. HV Slug penetrates Earth. Signal Interpreter destroyed. System corrupted by crushing effect (+2). Penetrated by HV Slug. HV Slug penetrates Earth. Penetrated by HV Slug. Map ----- +----------------------------------------------------+ | ?????????????????????????????????????????????????? | | ?????????????????????????????????????????????????? | | ?????????????????????????????????????????????????? | | ?????????????????????????????????????????????????? | | ?????????????????????????????????????????????????? | | ?????????????????????????????????????????????????? | | ?????????????????????????????????????????????????? | | ?????????????????????????????????????????????????? | | ???????????????????????????????????????????####??? | | ??????????????????????????????????????????## #??? | | ?????????????????????????????????????????## #??? | | ?????????????????????????????????????????# > #??? | | ?????????????????????????????????????????# #??? | | ?????????????????????????????????????????# #??? | | ????????????????????????????????????????## ##??? | | ???????????????????????????????????????## ##??? | | ???????????????????????????????????????# #??? | | ???????????????????#####???????????????# #??? | | ??????????????????##" #??????????????## #??? | | ??????????????????#" #?????????????## # #??? | | ?????????????????##" g##????????????# ###??? | | ???????????????### ###????????### ##????? | | ???????????????# ########## #?????? | | ??????????????## % #""""## ##?????? | | ??????????????# aa a * ##?????? | | ?????? #; a@ * #?????? | | ?? ###; a ##????? | | ?? ""#?# ;### ###??? | | ?? # "##?####;#;#?#### * ###? | | ??? ?####?????? ## ????##### ## | | ??? ????????????#??? ???????### # | | ??? ?????????????????# #????????### # | | ???? "???????????????????##??????????### # | | ???? ?????????????????????????????????#" # | | ?????"""??????????????????????????????????#### | | ?????????????????????????????????????????????# | | ?????????????????????????????????????????????## | | ??????????????????????????????????????????????### | | ????????????????????????????????????????????????# | | ????????????????????????????????????????????????## | | ?????????????????????????????????????????????????# | | ?????????????????????????????????????????????????? | | ?????????????????????????????????????????????????? | | ?????????????????????????????????????????????????? | | ?????????????????????????????????????????????????? | | ?????????????????????????????????????????????????? | | ?????????????????????????????????????????????????? | | ?????????????????????????????????????????????????? | | ?????????????????????????????????????????????????? | | ?????????????????????????????????????????????????? | +----------------------------------------------------+ Best States ------------- Heat Dissipation 35 Energy Generation 19 Energy Capacity 430 Matter Stores 300 Matter Capacity 300 Sight Range 18 Terrain Scan Density 10 Additional Mass Support 6 Evasion (%) 55 Targeting Accuracy 5 Item Schematics ----------------- None Robot Schematics ------------------ None Fabricated ------------ Nothing Alien Tech Used ----------------- None Achievements -------------- None Challenges ------------ None Game ------ Seed GrenadeArmoredBay Manual? 0 Play Time 00:11:39 Cumulative 17.6 hours Start 2024.06.02 @ 16:25:58 End 2024.06.02 @ 16:36:31 Sessions 1 Manual Loads 0 Difficulty Rogue Special Mode None Game No. 31 Rogue 31 Adventurer 0 Explorer 0 Win Type - Total 0 Types 0/0/0/0/0/0/0/0/0 Lore% 11 Gallery% 22 Achievement% 17 Wizard Run 0 Options --------- Layout 1 ASCII 0 Keyboard 0 Movement Arrows Keybinds 0 Fullscreen 1 Font 16/Terminus Map View 50x40 Zoom Use 0% Tactical HUD 0 Map Filters NONE Filters NONE Steam SD RUN: 3b3d6bf2-9737-4aec-b0cf-c348ee11463e